[Event "Late-Titled-Tuesday-Blitz-October-10-2023"]
[Site "Chess.com"]
[Date "2023.10.10"]
[Round "2"]
[White "emiliochess"]
[Black "josiur"]
[Result "1-0"]
[WhiteElo "2317"]
[BlackElo "2503"]
[TimeControl "180+1"]
[EndTime "14:18:12 PDT"]
[Termination "emiliochess won by resignation"]

1. d4 {[%clk 0:02:17.6]} 1... d5 {[%clk 0:02:55.1]} 2. Bf4 {[%clk 0:02:17.8]}
2... e6 {[%clk 0:02:55.2]} 3. e3 {[%clk 0:02:17.9]} 3... Bd6 {[%clk 0:02:55.3]}
4. Nf3 {[%clk 0:02:16.5]} 4... Bxf4 {[%clk 0:02:55]} 5. exf4 {[%clk 0:02:17.4]}
5... Nf6 {[%clk 0:02:53.5]} 6. Nbd2 {[%clk 0:02:17.7]} 6... O-O {[%clk
0:02:53.7]} 7. c3 {[%clk 0:02:15.2]} 7... Qd6 {[%clk 0:02:53.6]} 8. g3 {[%clk
0:02:14.6]} 8... b6 {[%clk 0:02:53.4]} 9. Bd3 {[%clk 0:02:14.3]} 9... Ba6 {[%clk
0:02:52.7]} 10. Ne5 {[%clk 0:02:13.5]} 10... Bxd3 {[%clk 0:02:51.4]} 11. Nxd3
{[%clk 0:02:14]} 11... c5 {[%clk 0:02:51.1]} 12. dxc5 {[%clk 0:02:13.9]} 12...
bxc5 {[%clk 0:02:50.8]} 13. O-O {[%clk 0:02:14.5]} 13... Nc6 {[%clk 0:02:50.5]}
14. Re1 {[%clk 0:02:14.6]} 14... Rab8 {[%clk 0:02:50]} 15. Rb1 {[%clk
0:02:14.3]} 15... Rb7 {[%clk 0:02:44.3]} 16. Ne5 {[%clk 0:02:13.2]} 16... Rfb8
{[%clk 0:02:42.9]} 17. Qa4 {[%clk 0:02:06.5]} 17... Ne7 {[%clk 0:02:20]} 18. b3
{[%clk 0:02:00.9]} 18... h5 {[%clk 0:02:17.5]} 19. Rbd1 {[%clk 0:01:47.6]} 19...
h4 {[%clk 0:02:12.5]} 20. Ndc4 {[%clk 0:01:40.7]} 20... Qc7 {[%clk 0:02:10.7]}
21. Na5 {[%clk 0:01:41]} 21... Rb6 {[%clk 0:02:07.8]} 22. Kg2 {[%clk 0:01:34]}
22... Ne4 {[%clk 0:01:33.1]} 23. Rxe4 {[%clk 0:01:28.7]} 23... dxe4 {[%clk
0:01:31.2]} 24. Qxe4 {[%clk 0:01:29.6]} 24... Rd6 {[%clk 0:01:22.9]} 25. Rxd6
{[%clk 0:01:24.4]} 25... Qxd6 {[%clk 0:01:22.8]} 26. Nac4 {[%clk 0:01:25.3]}
26... Qd5 {[%clk 0:01:20.6]} 27. Kf3 {[%clk 0:01:20]} 27... hxg3 {[%clk
0:01:18.6]} 28. fxg3 {[%clk 0:01:19.9]} 28... f6 {[%clk 0:01:09.9]} 29. Nd3
{[%clk 0:01:15.8]} 29... Rd8 {[%clk 0:01:05.7]} 30. Nf2 {[%clk 0:01:05.2]} 30...
Kf7 {[%clk 0:00:56.8]} 31. Ne3 {[%clk 0:00:59.2]} 31... Qxe4+ {[%clk 0:00:49.4]}
32. Nxe4 {[%clk 0:01:00.1]} 32... Nd5 {[%clk 0:00:34.7]} 33. Nc4 {[%clk
0:00:44.1]} 33... Nb6 {[%clk 0:00:32.9]} 34. Ne3 {[%clk 0:00:34.8]} 34... Rc8
{[%clk 0:00:22.9]} 35. Nd6+ {[%clk 0:00:34.7]} 35... Ke7 {[%clk 0:00:23.2]} 36.
Nxc8+ {[%clk 0:00:35.6]} 36... Nxc8 {[%clk 0:00:23.8]} 37. Ke4 {[%clk
0:00:33.6]} 37... Nd6+ {[%clk 0:00:23.4]} 38. Kd3 {[%clk 0:00:33.7]} 38... Kd7
{[%clk 0:00:22.4]} 39. h3 {[%clk 0:00:32]} 39... Kc6 {[%clk 0:00:22.2]} 40. g4
{[%clk 0:00:31.6]} 40... Nf7 {[%clk 0:00:17.1]} 41. Nc4 {[%clk 0:00:29.4]} 41...
Nd8 {[%clk 0:00:11.9]} 42. Ke4 {[%clk 0:00:28.1]} 42... Nf7 {[%clk 0:00:11.8]}
43. h4 {[%clk 0:00:27.9]} 43... Nd8 {[%clk 0:00:12]} 44. g5 {[%clk 0:00:28.4]}
44... Nf7 {[%clk 0:00:11.7]} 45. a4 {[%clk 0:00:20.2]} 45... f5+ {[%clk
0:00:10.7]} 46. Ke3 {[%clk 0:00:19.4]} 46... Kd5 {[%clk 0:00:11.1]} 47. Kd3
{[%clk 0:00:18.6]} 47... g6 {[%clk 0:00:09.7]} 48. Ne3+ {[%clk 0:00:18.8]} 48...
Kc6 {[%clk 0:00:09.8]} 49. b4 {[%clk 0:00:18.8]} 49... cxb4 {[%clk 0:00:09.5]}
50. cxb4 {[%clk 0:00:19.7]} 50... a6 {[%clk 0:00:09.4]} 51. Nc4 {[%clk 0:00:20]}
51... Kd5 {[%clk 0:00:08.5]} 52. Ne3+ {[%clk 0:00:20.6]} 52... Kc6 {[%clk
0:00:09]} 53. Kd4 {[%clk 0:00:21.3]} 53... Kd6 {[%clk 0:00:09]} 54. Nc4+ {[%clk
0:00:21.7]} 54... Ke7 {[%clk 0:00:09.1]} 55. Ne5 {[%clk 0:00:22.6]} 55... Nxe5
{[%clk 0:00:05.4]} 56. Kxe5 {[%clk 0:00:23.5]} 56... Kd7 {[%clk 0:00:05.9]} 57.
Kf6 {[%clk 0:00:23.8]} 57... Kd6 {[%clk 0:00:06.5]} 58. b5 {[%clk 0:00:22.9]}
58... axb5 {[%clk 0:00:06.3]} 59. axb5 {[%clk 0:00:23.8]} 59... e5 {[%clk
0:00:06.3]} 60. fxe5+ {[%clk 0:00:24.4]} 60... Kd5 {[%clk 0:00:06.9]} 61. e6
{[%clk 0:00:25]} 61... Kd6 {[%clk 0:00:07.2]} 62. e7 {[%clk 0:00:25.4]} 62...
Kd7 {[%clk 0:00:07.5]} 63. Kf7 {[%clk 0:00:25.9]} 63... f4 {[%clk 0:00:08.4]}
64. e8=Q+ {[%clk 0:00:26.7]} 1-0

[Event "Late-Titled-Tuesday-Blitz-October-10-2023"]
[Site "Chess.com"]
[Date "2023.10.10"]
[Round "2"]
[White "baag"]
[Black "Lady_Nika"]
[Result "1-0"]
[WhiteElo "2880"]
[BlackElo "2561"]
[TimeControl "180+1"]
[EndTime "14:18:16 PDT"]
[Termination "baag won on time"]

1. d4 {[%clk 0:03:00.9]} 1... d5 {[%clk 0:02:59.5]} 2. c4 {[%clk 0:03:01.4]}
2... e6 {[%clk 0:02:59.4]} 3. Nf3 {[%clk 0:02:59.7]} 3... f5 {[%clk 0:02:59.6]}
4. g3 {[%clk 0:02:54.8]} 4... Nf6 {[%clk 0:02:59.4]} 5. Bg2 {[%clk 0:02:55.5]}
5... c6 {[%clk 0:02:59.6]} 6. O-O {[%clk 0:02:56.2]} 6... Bd6 {[%clk 0:02:59.6]}
7. Nc3 {[%clk 0:02:54.9]} 7... Nbd7 {[%clk 0:02:59]} 8. Qc2 {[%clk 0:02:55.6]}
8... Ne4 {[%clk 0:02:58.7]} 9. Rb1 {[%clk 0:02:54.8]} 9... O-O {[%clk 0:02:58]}
10. b4 {[%clk 0:02:55.2]} 10... Qe7 {[%clk 0:02:56]} 11. b5 {[%clk 0:02:55.1]}
11... Ndf6 {[%clk 0:02:50.3]} 12. bxc6 {[%clk 0:02:42.6]} 12... bxc6 {[%clk
0:02:50]} 13. Ne5 {[%clk 0:02:43.3]} 13... Bxe5 {[%clk 0:02:41.9]} 14. dxe5
{[%clk 0:02:43.5]} 14... Nd7 {[%clk 0:02:41.9]} 15. cxd5 {[%clk 0:02:37.3]}
15... cxd5 {[%clk 0:02:22.6]} 16. Nb5 {[%clk 0:02:22.1]} 16... Ba6 {[%clk
0:02:12.4]} 17. Ba3 {[%clk 0:02:20.7]} 17... Nec5 {[%clk 0:01:26]} 18. Nc7
{[%clk 0:02:19.5]} 18... Bc4 {[%clk 0:01:24.7]} 19. Nxa8 {[%clk 0:02:07.1]}
19... Rxa8 {[%clk 0:01:23.8]} 20. Rfd1 {[%clk 0:01:49.3]} 20... Rc8 {[%clk
0:01:19.5]} 21. Qb2 {[%clk 0:01:39.5]} 21... Qd8 {[%clk 0:01:14.9]} 22. Bxc5
{[%clk 0:01:18.2]} 22... Nxc5 {[%clk 0:01:06.1]} 23. Rd4 {[%clk 0:01:16.8]}
23... Qc7 {[%clk 0:01:04.1]} 24. Rd2 {[%clk 0:01:08.2]} 24... Qa5 {[%clk
0:00:58.2]} 25. Rc2 {[%clk 0:01:06.5]} 25... Qa6 {[%clk 0:00:46.6]} 26. h4
{[%clk 0:01:04.6]} 26... h6 {[%clk 0:00:44]} 27. Bf3 {[%clk 0:01:01.7]} 27...
Kh7 {[%clk 0:00:42.2]} 28. h5 {[%clk 0:01:02]} 28... Nd7 {[%clk 0:00:27.7]} 29.
Qb7 {[%clk 0:01:00.6]} 29... Qxb7 {[%clk 0:00:27.2]} 30. Rxb7 {[%clk 0:01:01.5]}
30... Nxe5 {[%clk 0:00:27.6]} 31. Rxa7 {[%clk 0:00:54.1]} 31... Rb8 {[%clk
0:00:26.3]} 32. Re7 {[%clk 0:00:39.4]} 32... d4 {[%clk 0:00:25.3]} 33. Rxc4
{[%clk 0:00:30.2]} 33... Nxc4 {[%clk 0:00:24.5]} 34. Rxe6 {[%clk 0:00:31]} 34...
Rb1+ {[%clk 0:00:18.8]} 35. Kg2 {[%clk 0:00:31.2]} 35... Ra1 {[%clk 0:00:19]}
36. Bd5 {[%clk 0:00:30.1]} 36... Nd2 {[%clk 0:00:10.8]} 37. Re8 {[%clk
0:00:25.7]} 37... g5 {[%clk 0:00:10.5]} 38. Re7+ {[%clk 0:00:20.4]} 38... Kh8
{[%clk 0:00:09.9]} 39. Be6 {[%clk 0:00:19.9]} 39... f4 {[%clk 0:00:09.5]} 40.
gxf4 {[%clk 0:00:20.7]} 40... gxf4 {[%clk 0:00:09.7]} 41. Rd7 {[%clk 0:00:20.5]}
41... Re1 {[%clk 0:00:07.8]} 42. Bg4 {[%clk 0:00:19.2]} 42... Ne4 {[%clk
0:00:04.6]} 43. Rxd4 {[%clk 0:00:19.4]} 43... Nf6 {[%clk 0:00:04.8]} 44. Bf3
{[%clk 0:00:20]} 44... Ra1 {[%clk 0:00:04.2]} 45. Rxf4 {[%clk 0:00:20.8]} 45...
Kg7 {[%clk 0:00:03.7]} 46. Ra4 {[%clk 0:00:21.5]} 46... Kf7 {[%clk 0:00:02.9]}
47. Ra7+ {[%clk 0:00:21.9]} 47... Ke6 {[%clk 0:00:03.5]} 48. a4 {[%clk
0:00:20.7]} 48... Kf5 {[%clk 0:00:03.9]} 49. Ra6 {[%clk 0:00:20.4]} 49... Kg5
{[%clk 0:00:03.4]} 50. e3 {[%clk 0:00:20.8]} 50... Ra2 {[%clk 0:00:02.9]} 51.
Kg3 {[%clk 0:00:17]} 51... Ra3 {[%clk 0:00:03]} 52. a5 {[%clk 0:00:15.5]} 52...
Rc3 {[%clk 0:00:02.3]} 53. Ra8 {[%clk 0:00:15.4]} 53... Ra3 {[%clk 0:00:02.3]}
54. a6 {[%clk 0:00:15.1]} 1-0

[Event "Late-Titled-Tuesday-Blitz-October-10-2023"]
[Site "Chess.com"]
[Date "2023.10.10"]
[Round "2"]
[White "Vegan4future"]
[Black "YQPerez"]
[Result "0-1"]
[WhiteElo "2407"]
[BlackElo "2883"]
[TimeControl "180+1"]
[EndTime "14:18:17 PDT"]
[Termination "YQPerez won by resignation"]

1. d4 {[%clk 0:03:00.9]} 1... Nf6 {[%clk 0:02:59.5]} 2. Nc3 {[%clk 0:02:59.6]}
2... e6 {[%clk 0:03:00.1]} 3. Bf4 {[%clk 0:02:59.6]} 3... d5 {[%clk 0:02:57.8]}
4. Nb5 {[%clk 0:02:59.2]} 4... Na6 {[%clk 0:02:58.4]} 5. e3 {[%clk 0:02:59.4]}
5... c6 {[%clk 0:02:51.3]} 6. Nc3 {[%clk 0:02:59]} 6... Bb4 {[%clk 0:02:45.7]}
7. Bxa6 {[%clk 0:02:56.4]} 7... bxa6 {[%clk 0:02:46.6]} 8. Nf3 {[%clk
0:02:52.2]} 8... Ne4 {[%clk 0:02:45.9]} 9. O-O {[%clk 0:02:47.7]} 9... Nxc3
{[%clk 0:02:42.1]} 10. bxc3 {[%clk 0:02:48.5]} 10... Bxc3 {[%clk 0:02:42.7]} 11.
Rb1 {[%clk 0:02:48.6]} 11... Ba5 {[%clk 0:02:40.6]} 12. Ne5 {[%clk 0:02:25.6]}
12... Bb6 {[%clk 0:02:09.7]} 13. Nxc6 {[%clk 0:02:12]} 13... Qd7 {[%clk
0:02:09.2]} 14. Ne5 {[%clk 0:02:12.2]} 14... Qa4 {[%clk 0:02:08.8]} 15. Qg4
{[%clk 0:01:54.1]} 15... Kf8 {[%clk 0:01:44.1]} 16. Qh5 {[%clk 0:01:41.2]} 16...
Qe8 {[%clk 0:01:43.3]} 17. Rfc1 {[%clk 0:01:33.4]} 17... f6 {[%clk 0:01:43]} 18.
Qxe8+ {[%clk 0:01:33.4]} 18... Kxe8 {[%clk 0:01:43.9]} 19. Nd3 {[%clk
0:01:33.8]} 19... Bd7 {[%clk 0:01:40.7]} 20. c4 {[%clk 0:01:28.8]} 20... dxc4
{[%clk 0:01:40.8]} 21. Rxc4 {[%clk 0:01:29.7]} 21... Bb5 {[%clk 0:01:40.6]} 22.
Rc3 {[%clk 0:01:29.6]} 22... Bxd3 {[%clk 0:01:35.1]} 23. Rxd3 {[%clk 0:01:30.5]}
23... Kd7 {[%clk 0:01:35.2]} 24. Rc3 {[%clk 0:01:29.9]} 24... Rhc8 {[%clk
0:01:34.8]} 25. Rbc1 {[%clk 0:01:30.4]} 25... Rxc3 {[%clk 0:01:34.5]} 26. Rxc3
{[%clk 0:01:31.3]} 26... h5 {[%clk 0:01:29.2]} 27. h3 {[%clk 0:01:27.5]} 27...
g5 {[%clk 0:01:24.9]} 28. Bg3 {[%clk 0:01:20.8]} 28... h4 {[%clk 0:01:24.5]} 29.
Bh2 {[%clk 0:01:19.1]} 29... a5 {[%clk 0:01:21.6]} 30. Kf1 {[%clk 0:01:18.1]}
30... Rg8 {[%clk 0:01:13.1]} 31. f3 {[%clk 0:01:14.1]} 31... f5 {[%clk
0:01:11.4]} 32. Be5 {[%clk 0:01:07.1]} 32... g4 {[%clk 0:01:11.7]} 33. fxg4
{[%clk 0:01:06.4]} 33... fxg4 {[%clk 0:01:12.6]} 34. hxg4 {[%clk 0:01:06.6]}
34... Rxg4 {[%clk 0:01:13]} 35. Rc2 {[%clk 0:01:03.9]} 35... Bd8 {[%clk
0:01:09]} 36. Rf2 {[%clk 0:01:02.1]} 36... Ke8 {[%clk 0:01:09.3]} 37. Ke2 {[%clk
0:00:56.2]} 37... Be7 {[%clk 0:01:06.9]} 38. Kd3 {[%clk 0:00:56.1]} 38... Rg8
{[%clk 0:01:06.3]} 39. Kc4 {[%clk 0:00:54.3]} 39... Kd7 {[%clk 0:01:06]} 40. Kb5
{[%clk 0:00:53.6]} 40... Rc8 {[%clk 0:01:04.9]} 41. Kxa5 {[%clk 0:00:53.2]}
41... Rc3 {[%clk 0:01:05]} 42. Kb5 {[%clk 0:00:47.5]} 42... Rxe3 {[%clk
0:01:04.5]} 43. Rc2 {[%clk 0:00:41.4]} 43... Bd8 {[%clk 0:01:02.8]} 44. a4
{[%clk 0:00:30.6]} 44... Rb3+ {[%clk 0:01:01.9]} 45. Kc4 {[%clk 0:00:31.1]}
45... Rb1 {[%clk 0:00:59.9]} 46. Kd3 {[%clk 0:00:29.4]} 46... Ra1 {[%clk
0:00:56.6]} 47. Ke4 {[%clk 0:00:24.4]} 47... Rxa4 {[%clk 0:00:56.3]} 48. Rf2
{[%clk 0:00:23.8]} 48... Ke8 {[%clk 0:00:55.8]} 49. Rb2 {[%clk 0:00:22.5]} 49...
Bb6 {[%clk 0:00:53.8]} 50. Rc2 {[%clk 0:00:22.3]} 50... Kd7 {[%clk 0:00:50.9]}
51. Rf2 {[%clk 0:00:22.8]} 51... Ke8 {[%clk 0:00:42]} 52. Rc2 {[%clk 0:00:22.7]}
52... Ra1 {[%clk 0:00:39.9]} 53. Rc8+ {[%clk 0:00:22.8]} 53... Kf7 {[%clk
0:00:38.4]} 54. Rh8 {[%clk 0:00:22.8]} 54... Rg1 {[%clk 0:00:36.6]} 55. Rxh4
{[%clk 0:00:22.2]} 55... Rxg2 {[%clk 0:00:37.1]} 56. Rh7+ {[%clk 0:00:22.9]}
56... Ke8 {[%clk 0:00:35.7]} 57. Kd3 {[%clk 0:00:23.4]} 57... Rg1 {[%clk
0:00:33.2]} 58. Kc4 {[%clk 0:00:23.9]} 58... Rb1 {[%clk 0:00:33.5]} 59. Rg7
{[%clk 0:00:21.5]} 59... a5 {[%clk 0:00:32.6]} 60. Rb7 {[%clk 0:00:20.5]} 60...
Rb4+ {[%clk 0:00:30.8]} 61. Kd3 {[%clk 0:00:20]} 61... Kd8 {[%clk 0:00:29.7]}
62. Rb8+ {[%clk 0:00:19.6]} 62... Kd7 {[%clk 0:00:30]} 63. Ra8 {[%clk 0:00:20]}
63... Kc6 {[%clk 0:00:30.1]} 64. Re8 {[%clk 0:00:19]} 64... Kd5 {[%clk
0:00:30.3]} 65. Ra8 {[%clk 0:00:16.9]} 65... a4 {[%clk 0:00:28.6]} 66. Kc3
{[%clk 0:00:15.8]} 66... Rc4+ {[%clk 0:00:28.4]} 67. Kd3 {[%clk 0:00:15.5]}
67... Bxd4 {[%clk 0:00:25.1]} 68. Bxd4 {[%clk 0:00:14.2]} 68... Rxd4+ {[%clk
0:00:25.4]} 69. Kc3 {[%clk 0:00:14]} 69... Re4 {[%clk 0:00:24.7]} 70. Rd8+
{[%clk 0:00:13.4]} 70... Ke5 {[%clk 0:00:25]} 71. Kd3 {[%clk 0:00:12.1]} 71...
Rb4 {[%clk 0:00:24.9]} 72. Kc3 {[%clk 0:00:12.2]} 72... Rh4 {[%clk 0:00:24.7]}
73. Rh8 {[%clk 0:00:13.1]} 73... Rxh8 {[%clk 0:00:24.5]} 0-1

[Event "Late-Titled-Tuesday-Blitz-October-10-2023"]
[Site "Chess.com"]
[Date "2023.10.10"]
[Round "2"]
[White "AsaHoffmann"]
[Black "dretch"]
[Result "0-1"]
[WhiteElo "2404"]
[BlackElo "2843"]
[TimeControl "180+1"]
[EndTime "14:18:23 PDT"]
[Termination "dretch won on time"]

1. d4 {[%clk 0:02:55.8]} 1... d5 {[%clk 0:02:55.4]} 2. Bg5 {[%clk 0:02:48.1]}
2... h6 {[%clk 0:02:51.9]} 3. Bh4 {[%clk 0:02:47.7]} 3... Nf6 {[%clk 0:02:46.3]}
4. Nd2 {[%clk 0:02:46.5]} 4... e6 {[%clk 0:02:43.8]} 5. e3 {[%clk 0:02:46]} 5...
c5 {[%clk 0:02:41.6]} 6. c3 {[%clk 0:02:45.8]} 6... Nc6 {[%clk 0:02:41.6]} 7. f4
{[%clk 0:02:45.8]} 7... Qb6 {[%clk 0:02:35.6]} 8. Rb1 {[%clk 0:02:45.2]} 8...
Bd6 {[%clk 0:02:29.1]} 9. Ngf3 {[%clk 0:02:38.6]} 9... cxd4 {[%clk 0:02:28.3]}
10. cxd4 {[%clk 0:02:38.3]} 10... Ng4 {[%clk 0:02:22.1]} 11. Qe2 {[%clk
0:02:29.9]} 11... Nb4 {[%clk 0:02:21]} 12. Bf2 {[%clk 0:02:17.7]} 12... Bd7
{[%clk 0:02:07.5]} 13. h3 {[%clk 0:02:05.5]} 13... Nc2+ {[%clk 0:02:04.2]} 14.
Kd1 {[%clk 0:02:05.1]} 14... Nxf2+ {[%clk 0:02:03.4]} 15. Qxf2 {[%clk
0:02:04.7]} 15... Ba4 {[%clk 0:01:58.7]} 16. b3 {[%clk 0:02:04.2]} 16... Na3
{[%clk 0:01:58.6]} 17. Rc1 {[%clk 0:01:58]} 17... Bc6 {[%clk 0:01:57.6]} 18. Bd3
{[%clk 0:01:53.7]} 18... f6 {[%clk 0:01:49.9]} 19. Qg3 {[%clk 0:01:48.2]} 19...
g5 {[%clk 0:01:47.7]} 20. Qg4 {[%clk 0:01:47]} 20... Ke7 {[%clk 0:01:41.7]} 21.
fxg5 {[%clk 0:01:31.2]} 21... hxg5 {[%clk 0:01:36.3]} 22. Rf1 {[%clk 0:01:26.5]}
22... Rag8 {[%clk 0:01:33.4]} 23. e4 {[%clk 0:01:23.2]} 23... Bf4 {[%clk
0:01:27.2]} 24. exd5 {[%clk 0:01:21]} 24... Bxd5 {[%clk 0:00:56.1]} 25. Re1
{[%clk 0:01:14.4]} 25... Kd8 {[%clk 0:00:41.2]} 26. g3 {[%clk 0:01:08.8]} 26...
f5 {[%clk 0:00:31.4]} 27. Bxf5 {[%clk 0:01:07.2]} 27... Bxd2 {[%clk 0:00:28.2]}
28. Nxd2 {[%clk 0:00:59.9]} 28... exf5 {[%clk 0:00:12.3]} 29. Qxf5 {[%clk
0:00:59.5]} 29... Bc6 {[%clk 0:00:12.9]} 30. Qf6+ {[%clk 0:00:51.4]} 30... Kc8
{[%clk 0:00:13.4]} 31. d5 {[%clk 0:00:51.5]} 31... Rd8 {[%clk 0:00:13]} 32. dxc6
{[%clk 0:00:43.4]} 32... Rhf8 {[%clk 0:00:12.2]} 33. Qe6+ {[%clk 0:00:38.7]}
33... Kc7 {[%clk 0:00:11.4]} 34. cxb7+ {[%clk 0:00:38.4]} 34... Kxb7 {[%clk
0:00:09.8]} 35. Qe7+ {[%clk 0:00:36.4]} 35... Kb8 {[%clk 0:00:09.7]} 36. Qe5+
{[%clk 0:00:35.6]} 36... Ka8 {[%clk 0:00:09.6]} 37. Qe4+ {[%clk 0:00:33.1]}
37... Kb8 {[%clk 0:00:10.1]} 38. Re2 {[%clk 0:00:31.7]} 38... Nb5 {[%clk
0:00:09]} 39. Qe5+ {[%clk 0:00:27]} 39... Ka8 {[%clk 0:00:09]} 40. Qe4+ {[%clk
0:00:25.3]} 40... Kb8 {[%clk 0:00:09.6]} 41. Qe5+ {[%clk 0:00:23.5]} 41... Rd6
{[%clk 0:00:10]} 42. Rc4 {[%clk 0:00:21]} 42... Na3 {[%clk 0:00:08.2]} 43. Kc1
{[%clk 0:00:15.4]} 43... Rd8 {[%clk 0:00:06.7]} 44. Kb2 {[%clk 0:00:13.8]} 44...
Ka8 {[%clk 0:00:06.4]} 45. Kxa3 {[%clk 0:00:12.5]} 45... Rxd2 {[%clk 0:00:04.8]}
46. Rxd2 {[%clk 0:00:12]} 46... Rxd2 {[%clk 0:00:05.7]} 47. Qe8+ {[%clk
0:00:10.3]} 47... Rd8 {[%clk 0:00:05.3]} 48. Qe4+ {[%clk 0:00:09.9]} 48... Kb8
{[%clk 0:00:05.9]} 49. Qe5+ {[%clk 0:00:09.8]} 49... Ka8 {[%clk 0:00:05.2]} 50.
Qxg5 {[%clk 0:00:09.2]} 50... Qa6+ {[%clk 0:00:04.7]} 51. Ra4 {[%clk 0:00:08.8]}
51... Qd6+ {[%clk 0:00:05]} 52. Rb4 {[%clk 0:00:08.4]} 52... Rb8 {[%clk
0:00:04.5]} 53. Qf4 {[%clk 0:00:07.6]} 53... Qa6+ {[%clk 0:00:03.5]} 54. Kb2
{[%clk 0:00:07.5]} 54... Qe2+ {[%clk 0:00:03.8]} 55. Kb1 {[%clk 0:00:07.1]}
55... Qe1+ {[%clk 0:00:04]} 56. Kb2 {[%clk 0:00:06.8]} 56... Qxb4 {[%clk
0:00:04.9]} 57. Qxb4 {[%clk 0:00:06.1]} 57... Rxb4 {[%clk 0:00:04.5]} 58. g4
{[%clk 0:00:06.2]} 58... Rb7 {[%clk 0:00:05.3]} 59. h4 {[%clk 0:00:06.1]} 59...
Rf7 {[%clk 0:00:05.9]} 60. g5 {[%clk 0:00:05]} 60... Rf4 {[%clk 0:00:06.1]} 61.
h5 {[%clk 0:00:04.6]} 61... Rf5 {[%clk 0:00:06.8]} 62. g6 {[%clk 0:00:04.1]}
62... Rxh5 {[%clk 0:00:07.2]} 0-1

[Event "Late-Titled-Tuesday-Blitz-October-10-2023"]
[Site "Chess.com"]
[Date "2023.10.10"]
[Round "2"]
[White "McCarthyStone"]
[Black "K_alena13"]
[Result "0-1"]
[WhiteElo "2423"]
[BlackElo "2164"]
[TimeControl "180+1"]
[EndTime "14:18:24 PDT"]
[Termination "K_alena13 won by checkmate"]

1. c4 {[%clk 0:03:00]} 1... c6 {[%clk 0:02:59.5]} 2. d4 {[%clk 0:02:57.2]} 2...
d5 {[%clk 0:02:59.9]} 3. cxd5 {[%clk 0:02:57.8]} 3... cxd5 {[%clk 0:03:00.1]} 4.
Nc3 {[%clk 0:02:58.7]} 4... Nc6 {[%clk 0:03:00.1]} 5. Bf4 {[%clk 0:02:59.6]}
5... a6 {[%clk 0:02:59]} 6. Rc1 {[%clk 0:03:00]} 6... Nf6 {[%clk 0:02:57.6]} 7.
Nf3 {[%clk 0:02:59.9]} 7... Bf5 {[%clk 0:02:56.3]} 8. e3 {[%clk 0:03:00]} 8...
e6 {[%clk 0:02:55.9]} 9. Bd3 {[%clk 0:02:59.6]} 9... Bxd3 {[%clk 0:02:52.9]} 10.
Qxd3 {[%clk 0:03:00.2]} 10... Bd6 {[%clk 0:02:53.2]} 11. Bg3 {[%clk 0:02:59.9]}
11... O-O {[%clk 0:02:52.4]} 12. O-O {[%clk 0:02:53.4]} 12... Rc8 {[%clk
0:02:51.7]} 13. a3 {[%clk 0:02:48.2]} 13... Na5 {[%clk 0:02:30.5]} 14. Na4
{[%clk 0:02:44.6]} 14... Nc4 {[%clk 0:02:21.6]} 15. Ne5 {[%clk 0:02:37.3]} 15...
Bxe5 {[%clk 0:02:11.2]} 16. dxe5 {[%clk 0:02:38]} 16... Ne4 {[%clk 0:02:08.7]}
17. Qd4 {[%clk 0:02:13.1]} 17... b5 {[%clk 0:01:53.9]} 18. Nc3 {[%clk
0:02:12.8]} 18... Ned2 {[%clk 0:01:41.5]} 19. Rc2 {[%clk 0:01:41.7]} 19... Nxf1
{[%clk 0:01:38.8]} 20. Kxf1 {[%clk 0:01:42.1]} 20... Qg5 {[%clk 0:01:26.7]} 21.
b3 {[%clk 0:01:28.4]} 21... Na5 {[%clk 0:01:10.9]} 22. Qb4 {[%clk 0:01:08.6]}
22... Nc6 {[%clk 0:00:49.4]} 23. Qf4 {[%clk 0:00:59.2]} 23... Qxf4 {[%clk
0:00:47.5]} 24. Bxf4 {[%clk 0:00:59.9]} 24... b4 {[%clk 0:00:42.6]} 25. Nb1
{[%clk 0:00:57]} 25... bxa3 {[%clk 0:00:37.2]} 26. Nxa3 {[%clk 0:00:57.7]} 26...
Nb4 {[%clk 0:00:32.6]} 27. Rd2 {[%clk 0:00:51.3]} 27... Rc3 {[%clk 0:00:31.3]}
28. Ke2 {[%clk 0:00:42.2]} 28... Rxb3 {[%clk 0:00:30.1]} 29. Nc2 {[%clk
0:00:42.6]} 29... Rc8 {[%clk 0:00:29.4]} 30. Nxb4 {[%clk 0:00:41.9]} 30... Rxb4
{[%clk 0:00:30.3]} 31. Bg5 {[%clk 0:00:40.8]} 31... h6 {[%clk 0:00:29.4]} 32.
Be7 {[%clk 0:00:40.8]} 32... Rb1 {[%clk 0:00:28.2]} 33. Ra2 {[%clk 0:00:39.1]}
33... Ra8 {[%clk 0:00:27.7]} 34. e4 {[%clk 0:00:35.6]} 34... dxe4 {[%clk
0:00:25.6]} 35. Ke3 {[%clk 0:00:35.7]} 35... a5 {[%clk 0:00:25.4]} 36. Kxe4
{[%clk 0:00:35.8]} 36... a4 {[%clk 0:00:25.7]} 37. Ra3 {[%clk 0:00:35.5]} 37...
Rb3 {[%clk 0:00:24.6]} 38. Ra2 {[%clk 0:00:31.6]} 38... a3 {[%clk 0:00:18.4]}
39. g3 {[%clk 0:00:26.4]} 39... Rb2 {[%clk 0:00:16.5]} 40. Rxa3 {[%clk
0:00:26.4]} 40... Rxa3 {[%clk 0:00:16.1]} 41. Bxa3 {[%clk 0:00:27]} 41... Rxf2
{[%clk 0:00:16.6]} 42. h4 {[%clk 0:00:26]} 42... Rg2 {[%clk 0:00:15.5]} 43. Kf3
{[%clk 0:00:25.5]} 43... Rg1 {[%clk 0:00:14.8]} 44. Bd6 {[%clk 0:00:25.5]} 44...
Rd1 {[%clk 0:00:14]} 45. Ke2 {[%clk 0:00:25.1]} 45... Rd5 {[%clk 0:00:13.3]} 46.
Ke3 {[%clk 0:00:25.1]} 46... Kh7 {[%clk 0:00:13.7]} 47. h5 {[%clk 0:00:24.9]}
47... Rd1 {[%clk 0:00:13.4]} 48. Kf3 {[%clk 0:00:24.8]} 48... Rh1 {[%clk
0:00:13]} 49. Kg4 {[%clk 0:00:25]} 49... g6 {[%clk 0:00:12.6]} 50. hxg6+ {[%clk
0:00:25.6]} 50... Kxg6 {[%clk 0:00:13.1]} 51. Kf4 {[%clk 0:00:26.1]} 51... Rf1+
{[%clk 0:00:12.6]} 52. Kg4 {[%clk 0:00:26.1]} 52... h5+ {[%clk 0:00:13.1]} 53.
Kh3 {[%clk 0:00:25.7]} 53... Kg5 {[%clk 0:00:12.6]} 54. Be7+ {[%clk 0:00:25.6]}
54... Kf5 {[%clk 0:00:12.2]} 55. Bf6 {[%clk 0:00:25.9]} 55... Re1 {[%clk
0:00:12]} 56. Bg7 {[%clk 0:00:22.9]} 56... Rxe5 {[%clk 0:00:11.7]} 57. Bxe5
{[%clk 0:00:23.2]} 57... Kxe5 {[%clk 0:00:12.6]} 58. Kh4 {[%clk 0:00:23.6]}
58... Kd4 {[%clk 0:00:12.9]} 59. Kxh5 {[%clk 0:00:24.1]} 59... e5 {[%clk
0:00:13.4]} 60. Kg5 {[%clk 0:00:24.6]} 60... e4 {[%clk 0:00:13.7]} 61. Kf6
{[%clk 0:00:25.1]} 61... e3 {[%clk 0:00:13.9]} 62. g4 {[%clk 0:00:25.5]} 62...
e2 {[%clk 0:00:14.8]} 63. g5 {[%clk 0:00:26.3]} 63... e1=Q {[%clk 0:00:15.1]}
64. Kxf7 {[%clk 0:00:26.7]} 64... Qg3 {[%clk 0:00:14.5]} 65. g6 {[%clk
0:00:26.7]} 65... Ke5 {[%clk 0:00:14.4]} 66. g7 {[%clk 0:00:27.1]} 66... Qf4+
{[%clk 0:00:14.6]} 67. Ke7 {[%clk 0:00:26.1]} 67... Qg5+ {[%clk 0:00:14.6]} 68.
Kf7 {[%clk 0:00:26.4]} 68... Qf5+ {[%clk 0:00:14.8]} 69. Ke7 {[%clk 0:00:26.8]}
69... Qg6 {[%clk 0:00:15.1]} 70. Kf8 {[%clk 0:00:27]} 70... Qf6+ {[%clk
0:00:15.4]} 71. Kg8 {[%clk 0:00:27.4]} 71... Ke6 {[%clk 0:00:15.2]} 72. Kh7
{[%clk 0:00:27.2]} 72... Qh4+ {[%clk 0:00:15.4]} 73. Kg6 {[%clk 0:00:27.6]}
73... Qg4+ {[%clk 0:00:15.5]} 74. Kh7 {[%clk 0:00:27.8]} 74... Qh5+ {[%clk
0:00:15.8]} 75. Kg8 {[%clk 0:00:27.7]} 75... Kf6 {[%clk 0:00:16.1]} 76. Kf8
{[%clk 0:00:25.7]} 76... Qf7# {[%clk 0:00:16.7]} 0-1